[Event "Championnat d'Europe Rapide"]
[Date "2024.12.07"]
[White "Pacher, Milan"]
[Black "Herega, Nejc"]
[WhiteElo "2310"]
[BlackElo "2249"]
[Round "6.39"]
[Result "1/2-1/2"]
[TimeControl "900+10"]

1. e4 {[%emt 00:27:47] [%clk 00:15:19]} d6 {[%emt 00:00:03] [%clk 00:15:17]} 2.
d4 {[%emt 00:00:02] [%clk 00:15:27]} Nf6 {[%emt 00:00:02] [%clk 00:15:25]} 3.
Nc3 {[%emt 00:00:01] [%clk 00:15:35]} e5 {[%emt 00:00:02] [%clk 00:15:33]} 4.
Nf3 {[%emt 00:00:03] [%clk 00:15:43]} Nbd7 {[%emt 00:00:03] [%clk 00:15:40]} 5.
Bc4 {[%emt 00:00:02] [%clk 00:15:50]} Be7 {[%emt 00:00:04] [%clk 00:15:47]} 6.
O-O {[%emt 00:00:03] [%clk 00:15:57]} O-O {[%emt 00:00:07] [%clk 00:15:49]} 7.
Re1 {[%emt 00:00:02] [%clk 00:16:06]} c6 {[%emt 00:00:03] [%clk 00:15:57]} 8. a4
{[%emt 00:00:03] [%clk 00:16:13]} h6 {[%emt 00:00:06] [%clk 00:16:01]} 9. Ba2
{[%emt 00:00:16] [%clk 00:16:07]} Re8 {[%emt 00:00:51] [%clk 00:15:20]} 10. Nh4
{[%emt 00:00:20] [%clk 00:15:56]} exd4 {[%emt 00:01:03] [%clk 00:14:28]} 11.
Qxd4 {[%emt 00:00:04] [%clk 00:16:03]} Nf8 {[%emt 00:00:23] [%clk 00:14:15]} 12.
Qd3 {[%emt 00:00:41] [%clk 00:15:31]} Be6 {[%emt 00:01:39] [%clk 00:12:47]} 13.
Bxe6 {[%emt 00:00:19] [%clk 00:15:22]} Nxe6 {[%emt 00:00:32] [%clk 00:12:25]}
14. Nf5 {[%emt 00:00:09] [%clk 00:15:23]} Bf8 {[%emt 00:00:18] [%clk 00:12:17]}
15. Qg3 {[%emt 00:01:35] [%clk 00:13:58]} Kh8 {[%emt 00:00:21] [%clk 00:12:05]}
16. Be3 {[%emt 00:00:10] [%clk 00:13:59]} Nh5 {[%emt 00:01:38] [%clk 00:10:37]}
17. Qf3 {[%emt 00:00:23] [%clk 00:13:45]} Nf6 {[%emt 00:00:37] [%clk 00:10:11]}
18. Rad1 {[%emt 00:00:03] [%clk 00:13:52]} d5 {[%emt 00:02:12] [%clk 00:08:09]}
19. exd5 {[%emt 00:00:55] [%clk 00:13:06]} cxd5 {[%emt 00:00:02] [%clk
00:08:16]} 20. Nxd5 {[%emt 00:00:42] [%clk 00:12:35]} Nxd5 {[%emt 00:00:09]
[%clk 00:08:17]} 21. Qxd5 {[%emt 00:00:30] [%clk 00:12:14]} Qf6 {[%emt 00:00:51]
[%clk 00:07:36]} 22. c3 {[%emt 00:00:48] [%clk 00:11:37]} Rad8 {[%emt 00:00:50]
[%clk 00:06:56]} 23. Qf3 {[%emt 00:00:04] [%clk 00:11:43]} Rxd1 {[%emt 00:00:14]
[%clk 00:06:52]} 24. Rxd1 {[%emt 00:00:01] [%clk 00:11:51]} Nc5 {[%emt 00:00:01]
[%clk 00:07:01]} 25. a5 {[%emt 00:01:49] [%clk 00:10:12]} Kh7 {[%emt 00:01:00]
[%clk 00:06:10]} 26. h4 {[%emt 00:00:46] [%clk 00:09:36]} b6 {[%emt 00:00:29]
[%clk 00:05:52]} 27. axb6 {[%emt 00:00:53] [%clk 00:08:53]} axb6 {[%emt
00:00:02] [%clk 00:05:59]} 28. h5 {[%emt 00:01:04] [%clk 00:07:59]} Re5 {[%emt
00:01:13] [%clk 00:04:56]} 29. g4 {[%emt 00:01:04] [%clk 00:07:06]} Qe6 {[%emt
00:01:13] [%clk 00:03:53]} 30. b4 {[%emt 00:01:07] [%clk 00:06:09]} Ne4 {[%emt
00:02:02] [%clk 00:02:01]} 31. Bd4 {[%emt 00:00:34] [%clk 00:05:45]} Ng5 {[%emt
00:00:03] [%clk 00:02:08]} 32. Qd3 {[%emt 00:00:56] [%clk 00:04:59]} Re4 {[%emt
00:00:17] [%clk 00:02:01]} 33. f3 {[%emt 00:00:35] [%clk 00:04:33]} Re1+ {[%emt
00:00:12] [%clk 00:01:59]} 34. Rxe1 {[%emt 00:00:03] [%clk 00:04:41]} Qxe1+
{[%emt 00:00:02] [%clk 00:02:07]} 35. Kg2 {[%emt 00:00:02] [%clk 00:04:49]} g6
{[%emt 00:00:18] [%clk 00:01:59]} 36. Ng3 {[%emt 00:01:44] [%clk 00:03:15]} Ne6
{[%emt 00:00:22] [%clk 00:01:47]} 37. hxg6+ {[%emt 00:00:21] [%clk 00:03:04]}
fxg6 {[%emt 00:00:02] [%clk 00:01:55]} 38. Qe3 {[%emt 00:00:09] [%clk 00:03:05]}
Qxe3 {[%emt 00:00:31] [%clk 00:01:35]} 39. Bxe3 {[%emt 00:00:02] [%clk
00:03:14]} b5 {[%emt 00:00:01] [%clk 00:01:43]} 40. f4 {[%emt 00:00:20] [%clk
00:03:03]} Bg7 {[%emt 00:00:34] [%clk 00:01:19]} 41. Ne4 {[%emt 00:00:07] [%clk
00:03:06]} Nc7 {[%emt 00:00:34] [%clk 00:00:56]} 42. Kf3 {[%emt 00:00:10] [%clk
00:03:05]} Nd5 {[%emt 00:00:10] [%clk 00:00:56]} 43. Bd2 {[%emt 00:00:01] [%clk
00:03:14]} Kg8 {[%emt 00:00:29] [%clk 00:00:36]} 44. f5 {[%emt 00:00:12] [%clk
00:03:12]} gxf5 {[%emt 00:00:16] [%clk 00:00:30]} 45. gxf5 {[%emt 00:00:02]
[%clk 00:03:20]} Be5 {[%emt 00:00:11] [%clk 00:00:30]} 46. Bxh6 {[%emt 00:01:52]
[%clk 00:01:37]} Nxc3 {[%emt 00:00:03] [%clk 00:00:37]} 47. Bd2 {[%emt 00:00:02]
[%clk 00:01:45]} Nd5 {[%emt 00:00:19] [%clk 00:00:28]} 48. Nc5 {[%emt 00:00:22]
[%clk 00:01:33]} Bc3 {[%emt 00:00:19] [%clk 00:00:19]} 49. Bxc3 {[%emt 00:00:20]
[%clk 00:01:23]} Nxc3 {[%emt 00:00:01] [%clk 00:00:28]} 50. Kg4 {[%emt 00:00:33]
[%clk 00:01:00]} Kf7 {[%emt 00:00:07] [%clk 00:00:31]} 51. Kg5 {[%emt 00:00:01]
[%clk 00:01:08]} Nd5 {[%emt 00:00:18] [%clk 00:00:23]} 52. Nd3 {[%emt 00:00:02]
[%clk 00:01:17]} Kg7 {[%emt 00:00:06] [%clk 00:00:27]} 53. Ne5 {[%emt 00:00:16]
[%clk 00:01:10]} Nf6 {[%emt 00:00:20] [%clk 00:00:17]} 54. Nc6 {[%emt 00:00:23]
[%clk 00:00:58]} Nd5 {[%emt 00:00:03] [%clk 00:00:24]} 55. Ne5 {[%emt 00:00:12]
[%clk 00:00:55]} Nf6 {[%emt 00:00:05] [%clk 00:00:30]} 56. Ng4 {[%emt 00:00:07]
[%clk 00:00:57]} Ne4+ {[%emt 00:00:27] [%clk 00:00:14]} 57. Kf4 {[%emt 00:00:05]
[%clk 00:01:02]} Nc3 {[%emt 00:00:02] [%clk 00:00:22]} 58. Ke5 {[%emt 00:00:09]
[%clk 00:01:03]} Na2 {[%emt 00:00:11] [%clk 00:00:21]} 59. Ke6 {[%emt 00:00:16]
[%clk 00:00:57]} Nxb4 {[%emt 00:00:10] [%clk 00:00:21]} 60. f6+ {[%emt 00:00:08]
[%clk 00:00:59]} Kf8 {[%emt 00:00:04] [%clk 00:00:27]} 61. f7 {[%emt 00:00:11]
[%clk 00:00:58]} Nc6 {[%emt 00:00:08] [%clk 00:00:29]} 62. Ne5 {[%emt 00:00:10]
[%clk 00:00:58]} Nxe5 {[%emt 00:00:13] [%clk 00:00:27]} 63. Kxe5 {[%emt
00:00:02] [%clk 00:01:06]} b4 {[%emt 00:00:03] [%clk 00:00:35]} 64. Kd4 {[%emt
00:00:01] [%clk 00:01:15]} b3 {[%emt 00:00:01] [%clk 00:00:44]} 65. Kc3 {[%clk
00:01:24]} Kxf7 {[%emt 00:00:01] [%clk 00:00:52]} 66. Kxb3 {[%clk 00:01:21]}
1/2-1/2

[Site "Europe Echecs"]

[Event "Championnat d'Europe Rapide"]
[Date "2024.12.07"]
[White "Domalchuk-Jonasson, Aleksandr"]
[Black "Stefanova, Antoaneta"]
[WhiteElo "2377"]
[BlackElo "2418"]
[Round "6.40"]
[Result "1-0"]
[TimeControl "900+10"]

1. c4 {[%emt 00:00:03] [%clk 00:15:16]} c6 {[%emt 00:00:17] [%clk 00:15:04]} 2.
d4 {[%emt 00:00:04] [%clk 00:15:22]} d5 {[%emt 00:00:02] [%clk 00:15:12]} 3. Nc3
{[%emt 00:00:07] [%clk 00:15:24]} Nf6 {[%emt 00:00:39] [%clk 00:14:42]} 4. e3
{[%emt 00:00:03] [%clk 00:15:32]} a6 {[%emt 00:00:29] [%clk 00:14:24]} 5. c5
{[%emt 00:01:29] [%clk 00:14:12]} e5 {[%emt 00:00:43] [%clk 00:13:51]} 6. dxe5
{[%emt 00:01:13] [%clk 00:13:08]} Nfd7 {[%emt 00:01:58] [%clk 00:12:03]} 7. e4
{[%emt 00:00:48] [%clk 00:12:31]} d4 {[%emt 00:01:11] [%clk 00:11:02]} 8. Qxd4
{[%emt 00:00:12] [%clk 00:12:29]} Bxc5 {[%emt 00:00:04] [%clk 00:11:09]} 9. Qd1
{[%emt 00:01:27] [%clk 00:11:11]} Nxe5 {[%emt 00:03:19] [%clk 00:08:00]} 10.
Qxd8+ {[%emt 00:00:03] [%clk 00:11:18]} Kxd8 {[%emt 00:00:02] [%clk 00:08:09]}
11. Bf4 {[%emt 00:01:06] [%clk 00:10:21]} Nbd7 {[%emt 00:01:45] [%clk 00:06:34]}
12. Be2 {[%emt 00:00:34] [%clk 00:09:57]} Re8 {[%emt 00:00:38] [%clk 00:06:07]}
13. Rd1 {[%emt 00:00:59] [%clk 00:09:08]} b5 {[%emt 00:01:14] [%clk 00:05:04]}
14. Nf3 {[%emt 00:00:27] [%clk 00:08:50]} Ng6 {[%emt 00:01:59] [%clk 00:03:15]}
15. Bg3 {[%emt 00:00:08] [%clk 00:08:51]} Ke7 {[%emt 00:02:18] [%clk 00:01:07]}
16. h4 {[%emt 00:02:52] [%clk 00:06:10]} Kf8 {[%emt 00:00:12] [%clk 00:01:04]}
17. h5 {[%emt 00:00:01] [%clk 00:06:18]} Nge5 {[%emt 00:00:38] [%clk 00:00:36]}
18. Nd2 {[%emt 00:00:13] [%clk 00:06:15]} f6 {[%emt 00:00:24] [%clk 00:00:23]}
19. h6 {[%emt 00:00:35] [%clk 00:05:50]} g6 {[%emt 00:00:02] [%clk 00:00:31]}
20. Nb3 {[%emt 00:00:48] [%clk 00:05:12]} Bb6 {[%emt 00:00:02] [%clk 00:00:40]}
21. f4 {[%emt 00:00:01] [%clk 00:05:21]} Nf7 {[%emt 00:00:10] [%clk 00:00:40]}
22. Bf3 {[%emt 00:00:02] [%clk 00:05:28]} Nc5 {[%emt 00:00:30] [%clk 00:00:20]}
23. Bf2 {[%emt 00:00:26] [%clk 00:05:12]} Nd7 {[%emt 00:00:01] [%clk 00:00:29]}
24. Bxb6 {[%emt 00:01:11] [%clk 00:04:11]} Nxb6 {[%emt 00:00:01] [%clk
00:00:38]} 25. Nc5 {[%emt 00:00:01] [%clk 00:04:20]} b4 {[%emt 00:00:18] [%clk
00:00:30]} 26. Ne2 {[%emt 00:00:07] [%clk 00:04:23]} Ra7 {[%emt 00:00:12] [%clk
00:00:28]} 27. Nd4 {[%emt 00:00:08] [%clk 00:04:26]} Rc7 {[%emt 00:00:14] [%clk
00:00:23]} 28. Kf2 {[%emt 00:00:09] [%clk 00:04:28]} Kg8 {[%emt 00:00:09] [%clk
00:00:25]} 29. a3 {[%emt 00:00:48] [%clk 00:03:50]} bxa3 {[%emt 00:00:09] [%clk
00:00:26]} 30. bxa3 {[%emt 00:00:01] [%clk 00:03:59]} Nc4 {[%emt 00:00:01] [%clk
00:00:35]} 31. a4 {[%emt 00:00:02] [%clk 00:04:08]} a5 {[%emt 00:00:12] [%clk
00:00:33]} 32. Rc1 {[%emt 00:00:26] [%clk 00:03:51]} Ncd6 {[%emt 00:00:07] [%clk
00:00:36]} 33. Rhd1 {[%emt 00:00:05] [%clk 00:03:55]} Nxh6 {[%emt 00:00:12]
[%clk 00:00:35]} 34. e5 {[%emt 00:00:26] [%clk 00:03:40]} fxe5 {[%emt 00:00:09]
[%clk 00:00:36]} 35. fxe5 {[%emt 00:00:01] [%clk 00:03:49]} Rxe5 {[%emt
00:00:19] [%clk 00:00:27]} 36. Nxc6 {[%emt 00:00:02] [%clk 00:03:56]} Ng4+
{[%emt 00:00:23] [%clk 00:00:15]} 37. Kg1 {[%emt 00:00:37] [%clk 00:03:28]} Nf7
{[%emt 00:00:04] [%clk 00:00:21]} 38. Nxe5 {[%emt 00:00:13] [%clk 00:03:26]}
Ngxe5 {[%emt 00:00:04] [%clk 00:00:27]} 39. Bd5 {[%emt 00:00:05] [%clk
00:03:30]} Bg4 {[%emt 00:00:13] [%clk 00:00:23]} 40. Rf1 {[%emt 00:00:03] [%clk
00:03:38]} Re7 {[%emt 00:00:09] [%clk 00:00:25]} 41. Rce1 {[%emt 00:00:15] [%clk
00:03:33]} Bf5 {[%emt 00:00:12] [%clk 00:00:23]} 42. g4 {[%emt 00:00:24] [%clk
00:03:18]} Bxg4 {[%emt 00:00:03] [%clk 00:00:30]} 43. Bxf7+ {[%emt 00:00:10]
[%clk 00:03:19]} Rxf7 {[%emt 00:00:03] [%clk 00:00:37]} 44. Rxe5 {[%emt
00:00:01] [%clk 00:03:27]} Bf5 {[%emt 00:00:01] [%clk 00:00:47]} 45. Rfe1 {[%emt
00:00:11] [%clk 00:03:25]} Rc7 {[%emt 00:00:04] [%clk 00:00:53]} 46. Ne6 {[%emt
00:00:28]} Rc4 {[%clk 00:01:00]} 47. Rxa5 {[%emt 00:00:06] [%clk 00:03:14]} Rg4+
{[%emt 00:00:05] [%clk 00:01:05]} 48. Kf2 {[%emt 00:00:02] [%clk 00:03:23]} Kf7
{[%emt 00:00:09] [%clk 00:01:07]} 49. Nd8+ {[%emt 00:00:05] [%clk 00:03:27]} Kf6
{[%emt 00:00:05] [%clk 00:01:12]} 50. Ra6+ {[%emt 00:00:05] [%clk 00:03:32]} Kg5
{[%emt 00:00:03] [%clk 00:01:19]} 51. Ne6+ {[%emt 00:00:30] [%clk 00:03:12]}
Bxe6 {[%emt 00:00:09] [%clk 00:01:20]} 52. Rexe6 {[%emt 00:00:01] [%clk
00:03:21]} Rf4+ {[%emt 00:00:11] [%clk 00:01:19]} 53. Ke3 {[%emt 00:00:11]} Rf1
{[%clk 00:01:20]} 54. a5 {[%emt 00:00:05] [%clk 00:03:35]} Kg4 {[%emt 00:00:10]
[%clk 00:01:20]} 55. Ke2 {[%emt 00:00:06] [%clk 00:03:39]} Ra1 {[%emt 00:00:35]
[%clk 00:00:54]} 56. Ra7 {[%emt 00:00:06] [%clk 00:03:43]} g5 {[%emt 00:00:07]
[%clk 00:00:57]} 57. Rh6 {[%emt 00:00:09] [%clk 00:03:44]} 1-0

[Site "Europe Echecs"]

[Event "Championnat d'Europe Rapide"]
[Date "2024.12.07"]
[White "Baskin, Robert"]
[Black "Garcia Perez, Javier"]
[WhiteElo "2442"]
[BlackElo "2081"]
[Round "6.41"]
[Result "1-0"]
[TimeControl "900+10"]

1. e4 {[%emt 00:00:03] [%clk 00:15:16]} c5 {[%emt 00:00:44] [%clk 00:14:37]} 2.
Nf3 {[%emt 00:00:02] [%clk 00:15:24]} d6 {[%emt 00:00:02] [%clk 00:14:45]} 3. d4
{[%emt 00:00:11] [%clk 00:15:23]} cxd4 {[%emt 00:00:02] [%clk 00:14:53]} 4. Nxd4
{[%emt 00:00:01] [%clk 00:15:31]} Nf6 {[%emt 00:00:02] [%clk 00:15:01]} 5. Nc3
{[%emt 00:00:02] [%clk 00:15:40]} a6 {[%emt 00:00:02] [%clk 00:15:09]} 6. Rg1
{[%emt 00:00:14] [%clk 00:15:36]} e5 {[%emt 00:00:07] [%clk 00:15:12]} 7. Nb3
{[%emt 00:00:02] [%clk 00:15:45]} h5 {[%emt 00:00:04] [%clk 00:15:17]} 8. h3
{[%emt 00:00:04] [%clk 00:15:51]} h4 {[%emt 00:00:53] [%clk 00:14:34]} 9. Be3
{[%emt 00:00:08] [%clk 00:15:54]} Be6 {[%emt 00:00:21] [%clk 00:14:23]} 10. Qf3
{[%emt 00:00:15] [%clk 00:15:49]} Nbd7 {[%emt 00:00:28] [%clk 00:14:04]} 11.
O-O-O {[%emt 00:00:06] [%clk 00:15:53]} Rc8 {[%emt 00:02:40] [%clk 00:11:35]}
12. Nd5 {[%emt 00:00:01] [%clk 00:16:02]} Bxd5 {[%emt 00:00:08] [%clk 00:11:36]}
13. exd5 {[%emt 00:00:02] [%clk 00:16:10]} Qc7 {[%emt 00:00:12] [%clk 00:11:33]}
14. c3 {[%emt 00:00:03] [%clk 00:16:18]} b5 {[%emt 00:00:14] [%clk 00:11:29]}
15. Kb1 {[%emt 00:00:14] [%clk 00:16:14]} g6 {[%emt 00:01:52] [%clk 00:09:46]}
16. g4 {[%emt 00:00:07] [%clk 00:16:17]} hxg3 {[%emt 00:00:11] [%clk 00:09:45]}
17. fxg3 {[%emt 00:00:03] [%clk 00:16:24]} Bg7 {[%emt 00:00:53] [%clk 00:09:01]}
18. g4 {[%emt 00:00:22] [%clk 00:16:12]} O-O {[%emt 00:01:35] [%clk 00:07:36]}
19. g5 {[%emt 00:00:57] [%clk 00:15:25]} e4 {[%emt 00:00:07] [%clk 00:07:39]}
20. Qg2 {[%emt 00:01:01] [%clk 00:14:34]} Nh7 {[%emt 00:01:57] [%clk 00:05:53]}
21. Nd2 {[%emt 00:03:24] [%clk 00:11:19]} Ne5 {[%emt 00:02:47] [%clk 00:03:15]}
22. Nxe4 {[%emt 00:00:26] [%clk 00:11:03]} Rfe8 {[%emt 00:00:07] [%clk
00:03:19]} 23. h4 {[%emt 00:02:03] [%clk 00:09:10]} b4 {[%emt 00:01:05] [%clk
00:02:24]} 24. cxb4 {[%emt 00:03:46] [%clk 00:05:33]} Qe7 {[%emt 00:01:37] [%clk
00:00:57]} 25. Bxa6 {[%emt 00:01:20] [%clk 00:04:24]} Nc4 {[%emt 00:00:01] [%clk
00:01:06]} 26. Bc1 {[%emt 00:00:36] [%clk 00:03:58]} Rc7 {[%emt 00:00:30] [%clk
00:00:46]} 27. Rge1 {[%emt 00:00:24] [%clk 00:03:44]} Qd7 {[%emt 00:00:04] [%clk
00:00:52]} 28. a3 {[%emt 00:01:33]} Ra8 {[%clk 00:00:45]} 29. Bxc4 {[%emt
00:00:51] [%clk 00:01:57]} Rxc4 {[%clk 00:00:55]} 30. Ka2 {[%emt 00:00:36] [%clk
00:01:31]} Rxb4 {[%emt 00:00:07] [%clk 00:00:58]} 31. Rd3 {[%emt 00:00:50] [%clk
00:00:50]} Be5 {[%emt 00:00:02] [%clk 00:01:06]} 32. Qc2 {[%emt 00:00:06] [%clk
00:00:54]} Qb7 {[%emt 00:00:18] [%clk 00:00:58]} 33. Nc5 {[%emt 00:00:08] [%clk
00:00:56]} Qb5 {[%emt 00:00:18] [%clk 00:00:51]} 34. Rb3 {[%emt 00:00:27] [%clk
00:00:38]} Rxb3 {[%emt 00:00:03] [%clk 00:00:58]} 35. Nxb3 {[%clk 00:00:48]}
Qxd5 {[%emt 00:00:01] [%clk 00:01:07]} 36. Qe4 {[%emt 00:00:04] [%clk 00:00:53]}
Qxe4 {[%emt 00:00:27] [%clk 00:00:50]} 37. Rxe4 {[%emt 00:00:01] [%clk
00:01:02]} f5 {[%emt 00:00:32] [%clk 00:00:28]} 38. gxf6 {[%emt 00:00:07] [%clk
00:01:04]} Nxf6 {[%emt 00:00:13]} 39. Rb4 {[%clk 00:01:02]} Kf7 {[%emt 00:00:06]
[%clk 00:00:41]} 40. a4 {[%emt 00:00:13] [%clk 00:01:00]} Nd5 {[%emt 00:00:04]
[%clk 00:00:47]} 41. Rb7+ {[%emt 00:00:03]} Ke6 {[%emt 00:00:01] [%clk
00:00:54]} 42. a5 {[%emt 00:00:09] [%clk 00:01:10]} Bf6 {[%emt 00:00:09] [%clk
00:00:54]} 43. Bg5 {[%emt 00:00:14] [%clk 00:01:06]} Ne7 {[%emt 00:00:42] [%clk
00:00:23]} 44. Nd4+ {[%emt 00:00:11] [%clk 00:01:05]} Ke5 {[%emt 00:00:18] [%clk
00:00:15]} 45. Rxe7+ {[%emt 00:00:26] [%clk 00:00:49]} Bxe7 {[%emt 00:00:01]
[%clk 00:00:22]} 46. Nc6+ {[%emt 00:00:01] [%clk 00:00:58]} Ke6 {[%emt 00:00:20]
[%clk 00:00:12]} 47. Nxe7 {[%emt 00:00:14] [%clk 00:00:54]} Rxa5+ {[%emt
00:00:01] [%clk 00:00:21]} 48. Kb3 {[%emt 00:00:05] [%clk 00:00:59]} Rb5+ {[%emt
00:00:20] [%clk 00:00:12]} 49. Kc3 {[%clk 00:01:08]} Rc5+ {[%emt 00:00:13] [%clk
00:00:00]} 1-0

[Site "Europe Echecs"]

[Event "Championnat d'Europe Rapide"]
[Date "2024.12.07"]
[White "Molina Carretero, Daniel"]
[Black "Domingo Nunez, Ruben"]
[WhiteElo "2195"]
[BlackElo "2409"]
[Round "6.42"]
[Result "1/2-1/2"]
[TimeControl "900+10"]

1. c4 {[%emt 00:20:27] [%clk 00:15:19]} g6 {[%emt 00:00:01] [%clk 00:15:19]} 2.
g3 {[%emt 00:00:02] [%clk 00:15:27]} Bg7 {[%emt 00:00:01] [%clk 00:15:27]} 3.
Bg2 {[%emt 00:00:02] [%clk 00:15:35]} d6 {[%emt 00:00:03] [%clk 00:15:34]} 4.
Nf3 {[%emt 00:00:18] [%clk 00:15:27]} Nf6 {[%emt 00:00:29] [%clk 00:15:14]} 5.
Nc3 {[%emt 00:00:23] [%clk 00:15:15]} O-O {[%emt 00:00:03] [%clk 00:15:21]} 6.
d4 {[%emt 00:00:05] [%clk 00:15:20]} Nbd7 {[%emt 00:00:03] [%clk 00:15:28]} 7.
O-O {[%emt 00:00:04] [%clk 00:15:26]} c5 {[%emt 00:00:02] [%clk 00:15:37]} 8. d5
{[%emt 00:01:22] [%clk 00:14:14]} Rb8 {[%emt 00:00:01] [%clk 00:15:45]} 9. h3
{[%emt 00:00:33] [%clk 00:13:51]} a6 {[%emt 00:00:02] [%clk 00:15:54]} 10. a4
{[%emt 00:00:01] [%clk 00:14:00]} b6 {[%emt 00:00:01] [%clk 00:16:03]} 11. Bf4
{[%emt 00:00:28] [%clk 00:13:42]} Ne8 {[%emt 00:00:02] [%clk 00:16:11]} 12. Qd2
{[%emt 00:00:20] [%clk 00:13:30]} Nc7 {[%emt 00:00:13] [%clk 00:16:09]} 13. Bh6
{[%emt 00:00:41] [%clk 00:12:59]} b5 {[%emt 00:00:02] [%clk 00:16:18]} 14. Bxg7
{[%emt 00:01:07] [%clk 00:12:01]} Kxg7 {[%emt 00:00:01] [%clk 00:16:26]} 15.
axb5 {[%emt 00:00:16] [%clk 00:11:56]} axb5 {[%emt 00:00:01] [%clk 00:16:35]}
16. Nxb5 {[%emt 00:00:40] [%clk 00:11:26]} Nxb5 {[%emt 00:00:02] [%clk
00:16:42]} 17. cxb5 {[%clk 00:11:36]} Rxb5 {[%emt 00:00:02] [%clk 00:16:51]} 18.
Qc3+ {[%emt 00:00:01] [%clk 00:11:45]} Kg8 {[%emt 00:00:38] [%clk 00:16:23]} 19.
Nd2 {[%emt 00:00:26] [%clk 00:11:29]} Rb4 {[%emt 00:00:41] [%clk 00:15:52]} 20.
Nc4 {[%emt 00:00:22] [%clk 00:11:17]} Nb6 {[%emt 00:00:07] [%clk 00:15:54]} 21.
Na5 {[%emt 00:02:58] [%clk 00:08:29]} Bd7 {[%emt 00:05:18] [%clk 00:10:45]} 22.
Nc6 {[%emt 00:01:59] [%clk 00:06:41]} Bxc6 {[%emt 00:00:36] [%clk 00:10:20]} 23.
dxc6 {[%emt 00:00:01] [%clk 00:06:50]} Qc7 {[%emt 00:01:24] [%clk 00:09:06]} 24.
b3 {[%emt 00:00:51] [%clk 00:06:09]} Rb8 {[%emt 00:00:13] [%clk 00:09:02]} 25.
Ra3 {[%emt 00:00:13] [%clk 00:06:06]} Nc8 {[%emt 00:00:28] [%clk 00:08:44]} 26.
Rfa1 {[%emt 00:00:01] [%clk 00:06:15]} e6 {[%emt 00:00:01] [%clk 00:08:53]} 27.
h4 {[%emt 00:00:20] [%clk 00:06:05]} h5 {[%emt 00:02:24] [%clk 00:06:38]} 28.
Bf3 {[%emt 00:01:18] [%clk 00:04:58]} R4b5 {[%emt 00:00:21] [%clk 00:06:27]} 29.
Qf6 {[%emt 00:00:42] [%clk 00:04:26]} d5 {[%emt 00:00:46] [%clk 00:05:51]} 30.
e4 {[%emt 00:00:32] [%clk 00:04:04]} Qxc6 {[%emt 00:03:55] [%clk 00:02:06]} 31.
exd5 {[%emt 00:00:17] [%clk 00:03:57]} Qd7 {[%emt 00:00:28] [%clk 00:01:48]} 32.
dxe6 {[%emt 00:00:22] [%clk 00:03:44]} Qxe6 {[%emt 00:00:01] [%clk 00:01:56]}
33. Qxe6 {[%emt 00:00:39] [%clk 00:03:16]} fxe6 {[%emt 00:00:01] [%clk
00:02:05]} 34. Be2 {[%emt 00:00:03] [%clk 00:03:23]} R5b6 {[%clk 00:02:14]} 35.
Bc4 {[%emt 00:00:22] [%clk 00:03:11]} Kf7 {[%emt 00:00:01] [%clk 00:02:23]} 36.
Re1 {[%emt 00:00:14] [%clk 00:03:06]} R8b7 {[%emt 00:00:21] [%clk 00:02:12]} 37.
Ra8 {[%emt 00:00:39] [%clk 00:02:37]} Rc7 {[%emt 00:00:09] [%clk 00:02:13]} 38.
Re5 {[%emt 00:00:28] [%clk 00:02:19]} Kf6 {[%emt 00:00:11] [%clk 00:02:12]} 39.
f4 {[%emt 00:00:04] [%clk 00:02:25]} Ne7 {[%emt 00:00:42] [%clk 00:01:40]} 40.
Ra5 {[%emt 00:00:42] [%clk 00:01:53]} Rbc6 {[%emt 00:00:18] [%clk 00:01:32]} 41.
Kf2 {[%emt 00:00:06] [%clk 00:01:57]} Nf5 {[%emt 00:00:05] [%clk 00:01:38]} 42.
Bb5 {[%emt 00:00:29] [%clk 00:01:39]} Rd6 {[%emt 00:00:05] [%clk 00:01:42]} 43.
Bc4 {[%emt 00:00:02] [%clk 00:01:47]} Rdc6 {[%emt 00:00:30] [%clk 00:01:22]} 44.
Bb5 {[%emt 00:00:01] [%clk 00:01:56]} Rb6 {[%emt 00:00:49] [%clk 00:00:43]} 45.
Bc4 {[%emt 00:00:02] [%clk 00:02:03]} Rbc6 {[%emt 00:00:10] [%clk 00:00:43]} 46.
Bb5 {[%emt 00:00:01] [%clk 00:02:12]} Rd6 {[%emt 00:00:08] [%clk 00:00:45]} 47.
Bc4 {[%emt 00:00:01] [%clk 00:02:21]} Rd2+ {[%emt 00:00:15] [%clk 00:00:39]} 48.
Ke1 {[%emt 00:00:13] [%clk 00:02:18]} Rg2 {[%emt 00:00:21] [%clk 00:00:28]} 49.
Rxe6+ {[%emt 00:00:04] [%clk 00:02:25]} Kg7 {[%emt 00:00:01] [%clk 00:00:37]}
50. Bd3 {[%emt 00:00:56] [%clk 00:01:39]} Rxg3 {[%emt 00:00:23] [%clk 00:00:24]}
51. Bxf5 {[%emt 00:00:03] [%clk 00:01:45]} gxf5 {[%emt 00:00:01] [%clk
00:00:33]} 52. Re5 {[%emt 00:00:15] [%clk 00:01:41]} Rxb3 {[%emt 00:00:25] [%clk
00:00:18]} 53. Raxc5 {[%emt 00:00:17] [%clk 00:01:34]} Re3+ {[%emt 00:00:11]
[%clk 00:00:17]} 54. Kf2 {[%emt 00:00:32] [%clk 00:01:12]} Rxc5 {[%emt 00:00:02]
[%clk 00:00:25]} 55. Rxc5 {[%emt 00:00:11] [%clk 00:01:12]} Rh3 {[%emt 00:00:04]
[%clk 00:00:30]} 56. Rxf5 {[%emt 00:00:10] [%clk 00:01:12]} Rxh4 {[%emt
00:00:01] [%clk 00:00:39]} 57. Kg3 {[%emt 00:00:23] [%clk 00:00:59]} Rg4+ {[%emt
00:00:01] [%clk 00:00:48]} 58. Kh3 {[%emt 00:00:14] [%clk 00:00:56]} Kg6 {[%emt
00:00:08] [%clk 00:00:49]} 59. Rg5+ {[%emt 00:00:03] [%clk 00:01:03]} Rxg5
{[%emt 00:00:01] [%clk 00:00:58]} 60. fxg5 {[%emt 00:00:02] [%clk 00:01:12]}
Kxg5 {[%emt 00:00:01] [%clk 00:01:06]} 61. Kh2 {[%emt 00:00:02] [%clk 00:01:20]}
h4 {[%emt 00:00:01] [%clk 00:01:14]} 62. Kh1 {[%emt 00:00:02] [%clk 00:01:29]}
Kg4 {[%clk 00:01:23]} 63. Kg1 {[%emt 00:00:01] [%clk 00:01:38]} Kh3 {[%emt
00:00:01] [%clk 00:01:32]} 64. Kh1 {[%emt 00:00:01] [%clk 00:01:47]} Kg3 {[%emt
00:00:01] [%clk 00:01:41]} 65. Kg1 {[%emt 00:00:01] [%clk 00:01:56]} h3 {[%clk
00:01:50]} 66. Kh1 {[%emt 00:00:01] [%clk 00:02:05]} Kf2 {[%clk 00:01:58]} 67.
Kh2 {[%emt 00:00:01] [%clk 00:02:14]} Kf1 {[%clk 00:02:07]} 68. Kxh3 {[%emt
00:00:02] [%clk 00:02:12]} 1/2-1/2

[Site "Europe Echecs"]